bitfinex/quotes_ETHUSD_20250430
["timestamp","ask_amount","ask_price","bid_price","bid_amount"]
[1746021728272,5.69456037,1756.1,1754.9,0.4295154]
[1746021728467,5.69429036,1756.2,1754.9,0.34295154]
[1746021728667,6.24315761,1756.5,1755.0,0.55]
[1746021728868,5.69455791,1756.1,1755.0,0.55]
[1746021729086,0.30844305,1756.4,1755.0,0.55]
[1746021729268,6.585,1756.1,1754.9,0.41828792]
[1746021729466,10.719,1756.1,1754.7,10.719]
[1746021729667,0.30844305,1756.0,1754.9,1.25273426]
[1746021729892,0.30844305,1756.0,1754.8,3.0]
[1746021730092,5.69619323,1755.6,1754.4,18.842]
[1746021730398,0.55,1755.9,1754.9,10.719]
[1746021730552,0.30844305,1756.0,1754.9,10.719]
[1746021730553,5.69651131,1755.5,1754.9,10.719]
[1746021730757,5.69638649,1755.5,1755.0,3.0]
[1746021730959,5.69599245,1755.7,1754.9,0.42214469]
[1746021730960,5.69593089,1755.7,1754.9,0.42214469]
[1746021731268,5.6959411,1755.7,1754.4,18.842]
[1746021731465,0.07119681,1755.6,1754.0,13.39302916]
[1746021731793,5.69768104,1755.1,1754.0,11.13823069]
[1746021732107,5.69845939,1754.9,1754.0,11.13823069]
[1746021732291,6.24740249,1755.2,1754.1,3.0]
[1746021732292,5.69749054,1755.2,1754.1,3.0]
[1746021732590,0.30844305,1754.8,1754.1,3.0]
[1746021732888,5.69914115,1754.7,1754.0,11.13823069]
[1746021733054,0.30844305,1754.8,1754.0,0.41923069]
[1746021733391,0.30844305,1754.6,1753.7,18.841]
[1746021733607,0.30844305,1754.6,1753.8,3.0]
[1746021733776,0.30844305,1754.6,1753.9,0.55]
[1746021733976,16.41854953,1755.2,1753.9,1.33177281]
[1746021733977,5.69878896,1754.8,1753.9,1.33177281]
[1746021734190,0.85844305,1755.1,1753.9,0.42677281]
[1746021734491,0.85844305,1755.1,1753.7,18.841]
[1746021734492,0.55,1755.0,1753.7,18.841]
[1746021735104,6.24833038,1754.9,1753.7,18.841]
[1746021735298,5.70003163,1754.4,1753.7,18.841]
[1746021735499,0.6212429,1754.9,1753.4,10.721]
[1746021735700,0.55,1754.7,1753.4,10.721]
[1746021735869,0.55,1754.5,1753.4,11.1397456]
[1746021736069,5.70109317,1754.1,1753.4,11.1397456]
[1746021736299,5.69962952,1754.5,1753.4,11.1397456]
[1746021736466,0.55,1754.5,1753.4,11.1397456]
[1746021736668,0.30844305,1754.0,1753.5,3.0]
[1746021737360,5.70143507,1754.0,1753.4,11.1397456]
[1746021737481,5.7020093,1753.8,1753.4,10.721]
[1746021737807,5.70278309,1753.6,1752.9,10.443]
[1746021738015,0.30844305,1753.5,1752.9,0.42590401]
[1746021738310,0.30844305,1753.5,1752.4,10.443]
[1746021738514,0.30844305,1753.5,1752.5,1.0443]
[1746021738515,5.70338901,1753.4,1752.5,1.0443]
[1746021738679,5.70339323,1753.4,1752.5,4.0443]
[1746021738889,6.01137151,1753.5,1752.5,1.48186322]
[1746021738890,0.30844305,1753.5,1752.5,1.48186322]
[1746021739209,10.445,1754.5,1752.7,0.55]
[1746021739515,10.445,1754.5,1753.3,0.55]
[1746021739683,7.23499303,1755.2,1753.5,0.55]
[1746021739684,5.69826121,1755.0,1753.5,0.55]
[1746021739865,10.445,1755.1,1753.5,0.55]
[1746021740068,10.445,1755.1,1753.7,0.55]
[1746021740575,10.445,1755.1,1753.4,3.0]
[1746021740901,10.445,1755.1,1753.5,0.55]
[1746021741069,1.6663,1756.1,1753.5,0.905]
[1746021741266,5.69620919,1755.6,1753.9,0.55]
[1746021741473,5.69674423,1755.4,1754.2,0.55]
[1746021741702,13.445,1756.0,1754.2,0.55]
[1746021741703,5.69651822,1755.5,1754.2,0.55]
[1746021742003,5.69633127,1755.6,1754.2,0.55]
[1746021742168,5.696876,1755.4,1754.2,0.905]
[1746021742364,5.69656068,1755.5,1754.2,0.905]
[1746021742605,5.69618064,1755.6,1754.2,0.905]
[1746021742606,18.852,1756.1,1754.2,0.905]
[1746021742767,10.445,1755.9,1754.2,0.905]
[1746021742973,3.0,1755.8,1754.2,1.32927765]
[1746021743184,5.69764877,1755.2,1754.2,0.77927765]
[1746021743474,10.445,1755.9,1754.3,0.55]
[1746021743670,5.69605832,1755.6,1754.3,0.55]
[1746021744009,5.69651973,1755.5,1754.3,0.55]
[1746021744190,10.445,1755.9,1754.3,0.55]
[1746021744931,5.69651374,1755.5,1754.3,0.55]
[1746021745129,0.55,1755.6,1754.2,0.77927765]
[1746021745331,5.69738927,1755.2,1754.2,0.77927765]
[1746021745532,10.445,1755.9,1754.2,0.77927765]
[1746021745737,5.69592483,1755.7,1754.2,0.77927765]
[1746021745899,16.14026621,1755.9,1754.3,0.55]
[1746021746102,5.69588481,1755.7,1754.3,0.55]
[1746021746430,10.445,1755.9,1754.3,0.55]
[1746021746809,10.445,1755.9,1754.5,6.3733827]
[1746021747022,18.852,1756.1,1754.7,3.55]
[1746021747535,24.54645755,1756.1,1754.7,3.55]
[1746021747737,18.852,1756.1,1754.7,3.55]
[1746021747959,18.852,1756.1,1754.9,0.55]
[1746021748102,24.546576,1756.1,1754.9,0.55]
[1746021748304,18.852,1756.1,1754.9,0.55]
[1746021748706,24.54665232,1756.1,1754.9,0.55]
[1746021748905,18.852,1756.1,1754.9,0.55]
[1746021749145,6.139741,1756.5,1754.9,0.55]
[1746021749340,6.139741,1756.5,1755.1,0.55]
[1746021749341,0.4465401,1756.5,1755.1,0.55]
[1746021749634,0.4465401,1756.5,1755.3,3.55]
[1746021749975,5.69400838,1756.3,1755.3,3.41850823]
[1746021750415,5.69413908,1756.2,1755.3,3.41850823]
[1746021750612,5.69355318,1756.4,1755.4,0.55]
[1746021751166,6.13983273,1756.5,1755.3,3.41850823]
[1746021751167,5.69435472,1756.2,1755.3,3.41850823]
[1746021751559,6.13982685,1756.5,1755.4,0.55]
[1746021751856,6.13982685,1756.5,1755.3,3.41850823]
[1746021751857,5.69383074,1756.3,1755.3,3.41850823]
[1746021752063,0.4465401,1756.5,1755.3,0.41850823]
[1746021752064,6.13972167,1756.5,1755.3,0.41850823]
[1746021752218,0.55,1756.2,1755.3,0.41850823]
[1746021752446,5.69585881,1755.7,1755.2,10.132]
[1746021752648,1.6403,1756.1,1754.9,0.42047829]
[1746021752852,5.69502242,1756.0,1754.8,18.849]
[1746021753024,5.69579397,1755.7,1754.9,1.8849]
[1746021753371,0.55,1756.1,1754.9,1.8849]
[1746021753372,5.69444825,1756.1,1755.0,0.55]
[1746021753655,5.69476541,1756.0,1755.0,0.55]
[1746021753966,5.69476541,1756.0,1754.8,19.27478887]
[1746021753967,5.69508514,1755.9,1754.8,19.27478887]
[1746021754130,0.55,1755.8,1754.8,0.42578887]
[1746021754460,5.69660473,1755.5,1754.7,3.0]
[1746021754666,5.69624609,1755.6,1754.7,0.43187035]
[1746021754825,10.129,1756.1,1754.7,3.0]
[1746021755028,5.69536189,1755.9,1754.8,0.55]
[1746021755322,10.129,1756.1,1754.8,0.905]
[1746021755526,15.82360463,1756.1,1754.8,0.905]
[1746021755747,10.129,1756.1,1754.8,0.905]
[1746021755922,5.69491961,1756.0,1754.8,0.905]
[1746021756122,10.129,1756.1,1754.8,0.905]
[1746021756123,15.82363332,1756.1,1754.8,0.905]
[1746021756327,10.129,1756.1,1754.8,0.905]
[1746021756523,5.69497091,1756.0,1754.8,0.905]
[1746021756725,10.129,1756.1,1754.8,0.905]
[1746021756960,10.129,1756.1,1754.7,3.43669193]
[1746021757263,5.69598264,1755.7,1754.7,0.43669193]
[1746021757427,5.69573389,1755.7,1754.6,10.129]
[1746021757767,5.69426406,1756.2,1754.8,0.55]
[1746021757967,17.87922236,1756.5,1754.8,0.55]
[1746021758263,17.87922236,1756.5,1754.8,0.905]
[1746021758264,5.69498225,1756.0,1754.8,0.905]
[1746021758427,5.69440053,1756.2,1754.8,0.905]
[1746021758630,16.26876968,1756.5,1754.8,0.905]
[1746021758963,16.26876968,1756.5,1754.9,0.55]
[1746021758964,5.69400149,1756.3,1754.9,0.55]
[1746021759270,5.69411604,1756.2,1754.8,0.355]
[1746021759475,10.5755401,1756.5,1754.9,0.55]
[1746021759476,5.69360078,1756.4,1754.9,0.55]
[1746021759638,16.26895421,1756.5,1754.8,0.905]
[1746021759827,16.26895421,1756.5,1754.9,0.55]
[1746021760023,5.693617,1756.4,1754.9,0.55]
[1746021760329,5.69363788,1756.4,1754.9,0.55]
[1746021760763,10.5755401,1756.5,1754.9,0.55]
[1746021761064,16.2687082,1756.5,1754.9,0.55]
[1746021761245,16.2687082,1756.5,1754.9,0.92424207]
[1746021761444,16.26871381,1756.5,1754.8,0.355]
[1746021761653,5.69386626,1756.3,1754.8,0.355]
[1746021761976,10.5755401,1756.5,1755.2,0.55]
[1746021762284,0.4465401,1756.5,1755.4,3.55]
[1746021762572,0.09612723,1756.5,1755.9,0.55]
[1746021762872,0.09612723,1756.5,1756.1,3.55]
[1746021763079,0.09612723,1756.5,1756.2,9.827]
[1746021763379,0.09612723,1756.5,1756.3,3.0]
[1746021763533,0.09612723,1756.5,1756.4,0.55]
[1746021763743,0.09612723,1756.5,1756.3,3.0]
[1746021763943,0.09612723,1756.5,1756.4,9.827]
[1746021764174,0.09612723,1756.5,1756.4,3.0]
[1746021764799,0.09612723,1756.5,1755.9,18.841]
[1746021764944,0.09612723,1756.5,1755.3,1.10823426]
[1746021765142,0.09612723,1756.5,1755.4,28.662]
[1746021765342,0.09612723,1756.5,1755.6,0.55]
[1746021765899,0.09612723,1756.5,1755.6,0.97993302]
[1746021766377,0.09612723,1756.5,1755.8,0.55]
[1746021766579,0.09612723,1756.5,1755.8,0.905]
[1746021766779,0.09612723,1756.5,1755.7,0.55]
[1746021767084,0.09612723,1756.5,1755.7,6.44933668]
[1746021768185,0.09612723,1756.5,1755.7,3.55]
[1746021768778,0.09612723,1756.5,1755.7,6.44933668]
[1746021769146,0.09612723,1756.5,1755.9,3.55]
[1746021769346,0.09612723,1756.5,1756.1,0.55]
[1746021769883,1.5903,1758.0,1756.1,0.55]
[1746021770055,1.529,1758.4,1756.1,3.2]
[1746021770256,5.21522818,1758.7,1756.2,0.65591406]
[1746021770583,5.68733542,1758.3,1756.6,0.55]
[1746021770745,5.68666477,1758.5,1756.7,18.833]
[1746021771080,5.68843381,1758.0,1756.8,3.55]
[1746021771245,5.68796956,1758.1,1756.9,0.355]
[1746021771447,5.68763508,1758.2,1756.9,0.355]
[1746021771769,5.68763508,1758.2,1755.3,1.00553833]
[1746021771770,6.23828213,1758.0,1755.3,1.00553833]
[1746021771977,6.20841249,1758.0,1756.2,3.0]
[1746021772284,11.37701848,1758.0,1756.3,0.55]
[1746021772589,14.4555,1758.2,1756.5,0.55]
[1746021772590,4.9085,1758.2,1756.5,0.55]
[1746021772881,1.6098,1758.4,1756.5,0.55]
[1746021773097,1.6098,1758.4,1756.6,3.0]
[1746021773098,7.29681309,1758.4,1756.6,3.0]
[1746021773255,7.29681309,1758.4,1756.9,0.55]
[1746021773454,7.29681309,1758.4,1757.1,3.55]
[1746021775095,5.68777073,1758.2,1757.9,18.825]
[1746021775402,5.68816846,1758.1,1757.8,9.545]
[1746021775700,5.68770109,1758.2,1757.8,9.545]
[1746021775853,0.55,1758.4,1757.8,9.545]
[1746021776055,5.68680802,1758.5,1757.9,3.0]
[1746021776484,5.74617668,1758.7,1757.9,3.0]
[1746021776864,0.06012818,1758.7,1757.9,3.0]
[1746021777162,0.06012818,1758.7,1757.9,3.42378437]
[1746021778164,0.06012818,1758.7,1758.1,3.0]
[1746021778483,0.06012818,1758.7,1757.6,0.55]
[1746021778685,0.06012818,1758.7,1757.8,3.0]
[1746021778907,0.06012818,1758.7,1757.9,9.279]
[1746021778908,5.68654902,1758.6,1757.9,9.279]
[1746021779088,5.74628912,1758.7,1758.0,3.0]
[1746021779304,5.68658917,1758.6,1758.0,3.0]
[1746021779512,5.68685742,1758.5,1757.2,0.55]
[1746021779696,0.06012818,1758.7,1757.3,28.101]
[1746021779898,0.06012818,1758.7,1757.5,0.55]
[1746021780197,0.06012818,1758.7,1757.6,1.77701319]
[1746021780416,0.06012818,1758.7,1757.8,3.55]
[1746021780583,0.06012818,1758.7,1757.9,0.355]
[1746021780983,5.7462315,1758.7,1758.1,3.0]
[1746021781229,5.7462315,1758.7,1757.9,9.277]
[1746021781532,5.7462315,1758.7,1757.5,19.252064]
[1746021781533,0.55,1758.5,1757.5,9.710064]
[1746021781829,0.55,1758.3,1757.5,9.71288638]
[1746021782026,5.68711941,1758.4,1757.6,3.0]
[1746021782190,0.55,1758.6,1757.5,9.277]
[1746021782191,6.23639965,1758.6,1757.5,9.277]
[1746021782377,5.74617321,1758.7,1757.6,3.0]
[1746021782575,0.06012818,1758.7,1757.7,3.3]
[1746021782779,5.68702663,1758.4,1757.6,9.277]
[1746021783178,5.68829621,1758.0,1757.4,9.277]
[1746021783530,5.68712983,1758.4,1757.4,9.70287977]
[1746021783741,5.68769989,1758.2,1757.4,9.70287977]
[1746021784022,11.37562493,1758.2,1757.5,3.0]
[1746021784323,5.68868515,1757.9,1757.2,18.819]
[1746021784536,5.68939428,1757.7,1757.2,18.819]
[1746021784682,5.68860572,1757.9,1757.2,18.819]
[1746021784879,0.55,1757.7,1757.2,18.819]
[1746021785189,0.55,1757.6,1757.0,9.276]
[1746021785394,1.5973,1758.1,1757.0,3.9276]
[1746021785599,5.6886348,1757.9,1757.0,3.9276]
[1746021785779,1.5973,1758.1,1757.0,3.9276]
[1746021785985,5.68906422,1757.8,1757.0,3.7152]
[1746021786185,7.28550777,1758.1,1757.0,3.7152]
[1746021786407,5.68722856,1758.4,1757.1,0.37152]
[1746021786637,5.68698817,1758.4,1757.1,0.37152]
[1746021786833,5.6877452,1758.2,1757.1,0.37152]
[1746021787053,5.68802761,1758.1,1757.3,3.0]
[1746021787209,0.55,1758.2,1757.0,3.7152]
[1746021787412,0.55,1757.9,1756.8,0.42297252]
[1746021787640,3.0,1758.0,1756.8,0.42297252]
[1746021787641,6.23926077,1757.7,1756.8,9.277]
[1746021787961,4.9751,1757.5,1756.6,0.43400658]
[1746021788253,4.9751,1757.5,1756.7,3.0]
[1746021788451,10.66500751,1757.5,1756.7,4.18492578]
[1746021788635,5.69042553,1757.4,1756.7,4.18492578]
[1746021788808,4.9751,1757.5,1756.7,4.18492578]
[1746021789009,20.3605,1758.1,1756.9,8.84925778]
[1746021789217,5.68775697,1758.2,1757.3,3.0]
[1746021789558,10.8185,1758.5,1757.3,3.0]
[1746021789724,5.68732071,1758.3,1757.3,3.0]
[1746021789920,5.68777939,1758.2,1757.3,3.0]
[1746021790243,5.68710697,1758.4,1757.3,3.0]
[1746021790448,10.8185,1758.5,1757.3,13.46292578]
[1746021790449,5.68781729,1758.2,1757.3,13.46292578]
[1746021790609,6.23783178,1758.2,1757.3,13.46292578]
[1746021790813,0.55,1757.9,1757.3,3.0]
[1746021791010,6.23838609,1758.0,1757.4,3.0]
[1746021791211,0.55,1758.1,1756.6,9.27586555]
[1746021791424,0.55,1757.6,1756.8,9.014]
[1746021791647,5.68796616,1758.1,1756.9,8.84925778]
[1746021791830,7.28162682,1758.4,1757.3,3.0]
[1746021792020,5.6865,1758.6,1757.5,11.84925778]
[1746021792220,0.06012818,1758.7,1757.5,11.84925778]
[1746021792420,5.68646952,1758.6,1757.5,30.67025778]
[1746021792732,5.68646952,1758.6,1757.5,21.821]
[1746021792733,5.7574206,1758.6,1757.5,21.821]
[1746021792933,0.55,1758.0,1756.9,8.84925778]
[1746021793148,0.55,1758.0,1757.1,18.821]
[1746021793352,0.55,1758.0,1755.1,14.6135742]
[1746021793353,0.55,1757.7,1756.6,0.4263084]
[1746021793646,5.69271273,1756.7,1756.4,18.821]
[1746021793809,5.69271273,1756.7,1756.3,9.014]
[1746021794006,0.62114688,1757.2,1755.8,8.84925778]
[1746021794007,1.5854,1756.8,1755.8,9.014]
[1746021794212,0.55,1756.6,1755.8,13.61010091]
[1746021794421,5.69353129,1756.4,1755.8,4.59610091]
[1746021794622,5.69365241,1756.4,1755.8,4.59610091]
[1746021794836,0.55,1756.5,1755.8,4.59610091]
[1746021795057,6.24330598,1756.5,1755.8,4.59610091]
[1746021795209,5.69242494,1756.8,1755.9,3.0]
[1746021795547,1.5835,1757.2,1755.9,3.75961009]
[1746021795548,6.24208358,1756.9,1755.9,3.75961009]
[1746021795726,6.00614395,1756.7,1755.9,3.0]
[1746021795925,5.69327662,1756.5,1755.8,13.61210091]
[1746021796121,6.00606263,1756.7,1755.8,13.61210091]
[1746021796322,5.69336441,1756.5,1755.9,3.0]
[1746021796534,6.00605664,1756.7,1755.9,3.0]
[1746021796735,0.31344472,1756.6,1755.9,3.0]
[1746021796923,5.69381014,1756.3,1755.8,9.016]
[1746021797114,0.55,1756.5,1755.8,9.016]
[1746021797341,0.55,1756.3,1755.8,9.016]
[1746021797649,6.00776108,1756.2,1755.8,9.016]
[1746021797849,0.31344472,1756.2,1755.8,9.016]
[1746021798216,0.31344472,1756.2,1755.9,3.0]
[1746021798420,5.69262741,1756.7,1755.9,3.0]
[1746021798617,1.5752,1756.9,1755.9,3.0]
[1746021798853,0.07115642,1757.1,1755.9,3.0]
[1746021799017,5.69151963,1757.0,1755.9,3.0]
[1746021799359,0.55,1756.9,1756.1,3.0]
[1746021799651,5.69292875,1756.6,1756.2,3.0]
[1746021799859,5.69364937,1756.4,1756.1,9.018]
[1746021800022,5.69394286,1756.3,1756.1,9.018]
[1746021800218,0.31267682,1756.5,1755.4,0.42552978]
[1746021800451,0.55,1756.2,1755.6,9.018]
[1746021800656,0.55,1756.2,1755.5,9.018]
[1746021800657,5.69439364,1756.2,1755.5,9.018]
[1746021800859,0.55,1756.2,1755.6,3.0]
[1746021801046,0.55,1756.2,1755.5,9.018]
[1746021801241,5.69400969,1756.3,1755.6,3.0]
[1746021801449,5.69447941,1756.1,1755.5,9.018]
[1746021801650,5.69482466,1756.0,1755.3,18.821]
[1746021801827,0.31267682,1756.2,1755.1,0.43204431]
[1746021802028,0.31267682,1756.2,1755.0,9.019]
[1746021802029,0.55,1756.0,1755.0,9.019]
[1746021802227,5.69660358,1755.5,1755.1,3.0]
[1746021802440,5.69624995,1755.6,1755.0,9.019]
[1746021802725,5.69619611,1755.6,1755.0,9.019]
[1746021802921,5.6959027,1755.7,1755.0,9.019]
[1746021803158,5.69619006,1755.6,1755.0,9.019]
[1746021803357,6.00886688,1755.6,1755.0,9.019]
[1746021803560,0.31267682,1755.6,1755.0,9.019]
[1746021803859,5.69556655,1755.8,1755.1,3.0]
[1746021804172,5.69378807,1756.3,1754.7,3.42288194]
[1746021804472,0.07116038,1756.7,1755.6,3.0]
[1746021804653,0.31125632,1756.2,1755.8,11.84925778]
[1746021804859,0.31125632,1756.2,1756.1,11.84925778]
[1746021805104,1.5868,1758.0,1756.2,3.55]
[1746021805257,5.75971767,1757.9,1756.6,3.0]
[1746021805570,0.07111195,1757.9,1756.6,3.0]
[1746021805755,5.68991519,1757.5,1756.7,18.836]
[1746021805959,5.7597836,1757.9,1756.8,11.84925778]
[1746021805960,5.68874481,1757.9,1756.8,11.84925778]
[1746021806166,5.68885005,1757.9,1757.0,3.0]
[1746021806346,5.68884586,1757.9,1757.0,3.0]
[1746021806675,5.68974242,1757.6,1757.0,3.0]
[1746021806963,5.68839113,1758.0,1757.0,3.0]
[1746021807173,5.68809471,1758.1,1757.2,3.0]
[1746021807471,1.6031,1758.4,1757.2,3.0]
[1746021807626,11.59819556,1758.7,1757.5,3.0]
[1746021807827,11.59819556,1758.7,1757.5,12.019]
[1746021808062,5.68718645,1758.4,1757.5,12.45345329]
[1746021808264,11.59819556,1758.7,1757.5,12.45345329]
[1746021808425,5.68639465,1758.6,1757.5,12.45345329]
[1746021808762,5.68639465,1758.6,1757.4,9.019]
[1746021808763,5.68763508,1758.2,1757.4,9.019]
[1746021808967,5.68908506,1757.8,1757.4,9.019]
[1746021809266,0.55,1758.0,1757.4,9.019]
[1746021809469,5.68773461,1758.2,1757.5,3.0]
[1746021809970,13.9134,1758.5,1757.6,9.019]
[1746021810201,13.9134,1758.5,1757.7,3.0]
[1746021810202,5.68735262,1758.3,1757.7,3.0]
[1746021810327,5.68879831,1757.9,1757.1,8.84925778]
[1746021810534,5.68854379,1758.0,1757.2,12.018]
[1746021810976,5.6873992,1758.3,1757.2,12.018]
[1746021811172,4.8944,1758.5,1757.3,1.2018]
[1746021811375,0.55,1758.1,1757.2,9.018]
[1746021811530,5.6904919,1757.4,1757.2,9.018]
[1746021811734,3.07111936,1757.8,1756.4,8.84925778]
[1746021812076,3.07111936,1757.8,1755.4,4.59610091]
[1746021812077,5.69087184,1757.2,1756.3,27.847]
[1746021812236,5.69198489,1756.9,1756.3,27.847]
[1746021812434,5.69184358,1756.9,1756.3,27.847]
[1746021812749,6.31286924,1757.0,1756.3,27.847]
[1746021812969,5.6934639,1756.4,1756.3,9.018]
[1746021813147,5.6934639,1756.4,1756.2,3.79162574]
[1746021813148,5.69378807,1756.3,1756.2,3.79162574]
[1746021813472,5.69351294,1756.4,1756.2,3.79162574]
[1746021813766,5.69251392,1756.7,1756.2,3.79162574]
[1746021813981,0.55,1756.9,1756.2,3.79162574]
[1746021814143,0.55,1757.2,1756.2,3.79162574]
[1746021814472,5.69200824,1756.9,1756.3,9.018]
[1746021814647,5.69235443,1756.8,1756.3,9.018]
[1746021814848,0.55,1757.2,1756.3,9.018]
[1746021815244,5.69020029,1757.5,1756.5,8.84925778]
[1746021815444,7.28130357,1757.7,1756.5,8.84925778]
[1746021815445,5.69077665,1757.3,1756.5,8.84925778]
[1746021815649,5.69039673,1757.4,1756.6,3.0]
[1746021815848,5.68973157,1757.6,1756.6,3.4295582]
[1746021816046,19.24858639,1758.3,1756.6,3.4295582]
[1746021816047,5.68759947,1758.3,1757.5,3.0]
[1746021816272,5.68724359,1758.4,1757.4,8.84925778]
[1746021816476,5.68789364,1758.2,1757.1,3.0]
[1746021816682,5.68827733,1758.1,1757.1,12.018]
[1746021817002,8.68795859,1758.1,1757.1,3.0]
[1746021817160,5.68882057,1757.9,1757.1,3.0]
[1746021817492,1.5327,1759.0,1757.6,3.0]
[1746021817658,1.5327,1759.0,1757.8,3.0]
[1746021817659,5.68615111,1758.7,1757.8,3.0]
[1746021817857,5.68615111,1758.7,1757.8,11.84925778]
[1746021818059,11.37244871,1758.7,1757.8,11.84925778]
[1746021818257,5.68686814,1758.5,1757.8,3.0]
[1746021818577,5.68653901,1758.6,1757.8,3.0]
[1746021818783,5.68687899,1758.5,1757.8,3.0]
[1746021819093,5.68749226,1758.3,1757.8,3.0]
[1746021819383,5.68537153,1758.9,1757.8,3.0]
[1746021819583,1.5327,1759.0,1757.8,3.0]
[1746021819584,7.2888898,1759.0,1757.8,3.0]
[1746021819786,5.68562404,1758.9,1757.8,11.84925778]
[1746021819990,5.68629598,1758.7,1757.8,11.84925778]
[1746021820166,5.68585392,1758.8,1757.8,11.84925778]
[1746021820793,5.68528773,1759.0,1757.8,11.84925778]
[1746021821092,5.68421332,1759.3,1758.2,3.0]
[1746021821300,5.68455977,1759.2,1758.3,8.861]
[1746021821598,5.68451551,1759.2,1758.4,3.0]
[1746021821752,5.68522268,1759.0,1758.4,3.0]
[1746021821958,10.4547,1759.7,1757.8,8.84925778]
[1746021821959,5.68659219,1758.6,1757.8,8.84925778]
[1746021822161,0.55,1759.0,1757.8,17.71025778]
[1746021822393,5.68518873,1759.0,1757.9,3.0]
[1746021822698,1.5491,1759.5,1758.2,3.0]
[1746021822903,5.6845316,1759.2,1758.2,3.0]
[1746021823075,5.68420327,1759.3,1758.5,3.0]
[1746021823275,5.68519832,1759.0,1758.5,3.0]
[1746021823472,5.68497305,1759.1,1758.5,3.0]
[1746021823687,11.36999053,1759.1,1758.5,3.0]
[1746021823854,5.6849014,1759.1,1758.5,3.0]
[1746021824063,5.68450772,1759.2,1758.5,3.0]
[1746021824274,5.6842739,1759.3,1758.5,3.0]
[1746021824493,5.68489567,1759.1,1758.5,3.0]
[1746021824665,5.68621268,1758.7,1758.4,8.858]
[1746021824990,6.23510876,1759.0,1758.4,8.858]
[1746021825179,5.68616989,1758.7,1758.4,8.858]
[1746021825382,5.68585046,1758.8,1758.4,8.858]
[1746021825592,5.68568174,1758.9,1758.4,8.858]
[1746021825773,5.68571172,1758.8,1758.4,8.858]
[1746021826170,5.68486037,1759.1,1758.4,8.858]
[1746021826373,5.68469873,1759.2,1758.5,3.0]
[1746021826675,5.68437353,1759.3,1758.5,3.0]
[1746021826862,6.07476161,1759.9,1758.8,3.0]
[1746021827062,5.68322111,1759.6,1758.8,3.0]
[1746021827262,0.39255918,1759.9,1758.8,3.0]
[1746021827461,0.4635949,1759.9,1759.0,3.0]
[1746021827692,5.68261881,1759.8,1759.0,3.0]
[1746021827897,6.07471929,1759.9,1759.0,3.0]
[1746021828094,5.68348415,1759.5,1759.0,3.0]
[1746021828295,0.55,1759.8,1758.9,8.856]
[1746021828496,5.68385766,1759.4,1758.9,8.856]
[1746021828696,5.68400139,1759.4,1758.9,8.856]
[1746021828884,5.68434162,1759.3,1758.7,3.0]
[1746021829200,5.68420083,1759.3,1758.7,3.0]
[1746021829723,5.68457378,1759.2,1758.7,3.0]
[1746021829865,5.68422455,1759.3,1758.7,3.0]
[1746021830079,5.68472571,1759.1,1758.6,8.855]
[1746021830317,5.68454529,1759.2,1758.4,27.66425778]
[1746021830622,5.68484206,1759.1,1758.5,11.855]
[1746021830767,5.68494977,1759.1,1758.5,11.855]
[1746021830967,5.68504832,1759.0,1758.5,11.855]
[1746021831175,0.55,1759.0,1758.4,18.815]
[1746021831375,5.6863706,1758.6,1758.4,18.815]
[1746021831624,0.55,1758.6,1756.3,8.7923222]
[1746021831801,5.68617272,1758.7,1757.7,8.854]
[1746021832124,5.6842019,1759.3,1758.3,3.0]
[1746021832271,3.0,1759.5,1758.5,3.0]
[1746021832472,5.68451622,1759.2,1758.5,3.0]
[1746021832922,16.0723594,1759.7,1758.5,3.0]
[1746021833082,5.68405612,1759.4,1758.5,4.1854]
[1746021833273,5.68419511,1759.3,1758.5,4.1854]
[1746021833469,5.68549258,1758.9,1758.3,4.18492578]
[1746021833716,5.68518279,1759.0,1758.3,3.0]
[1746021833914,0.55,1758.8,1758.0,18.81]
[1746021834094,5.75622163,1759.0,1758.0,27.664]
[1746021834274,17.70325778,1759.8,1758.0,27.664]
[1746021834275,7.21857517,1759.7,1758.4,3.0]
[1746021834580,5.7543263,1759.6,1758.5,0.3]
[1746021834781,0.07104959,1759.5,1758.5,0.3]
[1746021835020,5.68408978,1759.3,1758.7,3.0]
[1746021835323,5.68455289,1759.2,1758.7,3.0]
[1746021835619,5.68452364,1759.2,1758.7,3.0]
[1746021835911,5.68477703,1759.1,1758.5,8.854]
[1746021836117,5.68477703,1759.1,1758.6,3.0]
[1746021836420,5.68425277,1759.3,1758.6,3.0]
[1746021836619,5.68375582,1759.4,1758.6,3.0]
[1746021836918,5.68483675,1759.1,1758.4,11.595]
[1746021837084,5.68422557,1759.3,1758.6,3.0]
[1746021837273,5.68463588,1759.2,1758.6,3.0]
[1746021837477,5.68426764,1759.3,1758.6,3.0]
[1746021837903,5.68399635,1759.4,1758.6,13.00865778]
[1746021838101,5.68424198,1759.3,1758.6,4.5887836]
[1746021838411,5.68441945,1759.2,1758.6,3.0]
[1746021838612,6.23430032,1759.3,1758.7,3.0]
[1746021839015,0.39255918,1759.9,1758.9,3.0]
[1746021839212,5.68325346,1759.6,1758.9,3.0]
[1746021839419,0.39255918,1759.9,1759.0,0.3]
[1746021839774,0.46358445,1759.9,1759.0,8.594]
[1746021839979,5.68394634,1759.4,1759.1,3.0]
[1746021840178,0.55,1759.6,1759.0,8.594]
[1746021840386,0.55,1759.3,1758.6,3.0]
[1746021840598,5.68426981,1759.3,1758.6,11.593]
[1746021840822,5.68396477,1759.4,1758.6,12.7523]
[1746021841415,5.68282273,1759.7,1758.6,4.1593]